[Event "WJCC U20 Open 2019"]
[Site "New Delhi"]
[Date "2019.10.24"]
[Round "10.20"]
[White "Aaryan Varshney"]
[Black "Di Benedetto, Edoardo"]
[Result "0-1"]
[ECO "D47"]
[WhiteElo "2239"]
[BlackElo "2401"]
[Annotator "RC"]
[PlyCount "100"]
[EventDate "2019.10.15"]
[EventType "swiss"]
[EventCountry "IND"]
[SourceTitle "playchess.com"]
[Source "ChessBase"]
[SourceQuality "1"]
[TimeControl "40/5400+30:1800+30"]

1. d4 {[%emt 0:00:00]} e6 {[%emt 0:01:26]} 2. c4 {[%emt 0:00:00]} Nf6 {[%emt 0:00:40]} 3. Nf3 {[%emt 0:00:00]} d5 {[%emt 0:00:05]} 4. Nc3 {[%emt 0:00:09]} c6 {[%emt 0:00:05]} 5. e3 {[%emt 0:00:13]} Nbd7 {[%emt 0:00:05]} 6. Bd3 {[%emt 0:00:13]} dxc4 {[%emt 0:00:06]} 7. Bxc4 {[%emt 0:00:10]} b5 {[%emt 0:00:06]} 8. Bd3 {[%emt 0:00:13]} Bb7 {[%emt 0:00:08]} 9. O-O {[%emt 0:00:12]} a6 {[%emt 0:00:10]} 10. e4 {[%emt 0:00:07]} c5 {[%emt 0:00:03]} 11. d5 {[%emt 0:00:13]} Qc7 {[%emt 0:00:06]} 12. Bc2 {[%emt 0:00:21]} O-O-O {[%emt 0:00:15]} 13. dxe6 {[%emt 0:00:58]} Ne5 {[%emt 0:00:11]} 14. Qe2 {[%emt 0:00:42]} Nxf3+ {[%emt 0:00:51]} 15. Qxf3 {[%emt 0:00:01]} fxe6 {[%emt 0:00:10]} 16. Qh3 {[%emt 0:01:11]} Kb8 {[%emt 0:00:21]} 17. Be3 {[%emt 0:02:08]} Bd6 {[%emt 0:00:29]} 18. Rfd1 {[%emt 0:05:28]} Be5 {[%emt 0:00:54]} 19. Rac1 {[%emt 0:00:30]} Bc8 {[%emt 0:07:57]} 20. f3 {[%emt 0:11:22]} h6 {[%emt 0:07:07]} 21. g3 {[%emt 0:13:16]} Bd4 {[%emt 0:08:56]} 22. Bxd4 {[%emt 0:01:43]} cxd4 {[%emt 0:00:08]} 23. Ne2 {[%emt 0:01:59]} d3 {[%emt 0:05:16]} 24. Bxd3 {[%emt 0:06:34]} Qb6+ {[%emt 0:00:16]} 25. Kg2 {[%emt 0:01:15]} e5 {[%emt 0:00:29]} 26. Rxc8+ {[%emt 0:10:38]} Rxc8 {[%emt 0:00:09]} 27. Qf5 {[%emt 0:00:22]} Rhe8 {[%emt 0:00:21]} 28. Nc3 {[%emt 0:01:10]} Rcd8 {[%emt 0:10:47]} 29. Bc2 {[%emt 0:02:00]} Rxd1 {[%emt 0:00:42]} 30. Bxd1 {[%emt 0:00:25]} Qd4 {[%emt 0:04:59]} 31. Bb3 {[%emt 0:00:58]} Qd2+ {[%emt 0:01:25]} 32. Kg1 {[%emt 0:02:50]} Qxb2 {[%emt 0:00:46]} 33. Nd1 {[%emt 0:01:23]} Qd2 {[%emt 0:02:57]} 34. Nf2 {[%emt 0:00:55]} Qd7 {[%emt 0:00:38]} 35. Qxd7 {[%emt 0:00:30]} Nxd7 {[%emt 0:00:05]} 36. Nd3 {[%emt 0:00:33]} Kc7 {[%emt 0:00:26]} 37. Kf2 {[%emt 0:00:16]} Kd6 {[%emt 0:00:06]} 38. Bd5 {[%emt 0:00:13]} Nb6 {[%emt 0:01:46]} 39. Bf7 {[%emt 0:00:19]} Rf8 {[%emt 0:00:12]} 40. Bb3 {[%emt 0:00:25]} g5 {[%emt 0:02:36]} 41. Ke2 {[%emt 0:30:36]} a5 {[%emt 0:30:11]} 42. a3 {[%emt 0:00:40]} Rc8 {[%emt 0:00:18]} 43. Kd2 {[%emt 0:00:24]} Nc4+ {[%emt 0:00:15]} 44. Bxc4 {[%emt 0:00:05]} bxc4 {[%emt 0:00:09]} 45. Nf2 {[%emt 0:00:08]} Rf8 {[%emt 0:00:55]} 46. Ke2 {[%emt 0:00:07]} Rb8 {[%emt 0:00:13]} 47. Nd1 {[%emt 0:00:19]} Kc5 {[%emt 0:00:04]} 48. Kd2 {[%emt 0:00:05]} Kd4 {[%emt 0:00:11]} 49. Kc2 {[%emt 0:00:03]} Rb3 {[%emt 0:00:11]} 50. a4 {[%emt 0:00:02]} Rxf3 {[%emt 0:00:07]} 0-1

[Event "WJCC U20 Open 2019"]
[Site "New Delhi"]
[Date "2019.10.24"]
[Round "10.21"]
[White "Muradli, Mahammad"]
[Black "Pranav, V."]
[Result "1-0"]
[ECO "E33"]
[WhiteElo "2459"]
[BlackElo "2308"]
[Annotator "ChessBase"]
[PlyCount "145"]
[EventDate "2019.10.15"]
[EventType "swiss"]
[EventCountry "IND"]
[SourceTitle "playchess.com"]
[Source "ChessBase"]
[SourceQuality "1"]
[TimeControl "40/5400+30:1800+30"]

1. d4 {[%emt 0:02:10]} Nf6 {[%emt 0:00:00]} 2. c4 {[%emt 0:00:02]} Nc6 {[%emt 0:00:23]} 3. Nf3 {[%emt 0:01:14]} e6 {[%emt 0:00:10]} 4. Nc3 {[%emt 0:04:21]} Bb4 {[%emt 0:00:54]} 5. Qc2 {[%emt 0:01:42]} d6 {[%emt 0:03:06]} 6. Bd2 {[%emt 0:11:39]} e5 {[%emt 0:05:45]} 7. d5 {[%emt 0:02:12]} Bxc3 {[%emt 0:00:12]} 8. Bxc3 {[%emt 0:00:20]} Ne7 {[%emt 0:00:07]} 9. e4 {[%emt 0:00:11]} Bg4 {[%emt 0:03:05]} 10. Nd2 {[%emt 0:03:17]} c6 {[%emt 0:03:03]} 11. f3 {[%emt 0:06:29]} Bd7 {[%emt 0:00:21]} 12. dxc6 {[%emt 0:00:04]} Nxc6 {[%emt 0:00:39]} 13. Be2 {[%emt 0:01:22]} O-O {[%emt 0:01:41]} 14. Nf1 {[%emt 0:02:18]} Qb6 {[%emt 0:04:28]} 15. Qd2 {[%emt 0:03:28]} Be6 {[%emt 0:02:49]} 16. Ne3 {[%emt 0:01:47]} Nd4 {[%emt 0:02:12]} 17. Rd1 {[%emt 0:06:12]} Nxe2 {[%emt 0:01:57]} 18. Kxe2 {[%emt 0:00:05]} Ne8 {[%emt 0:15:04]} 19. b3 {[%emt 0:08:34]} Rc8 {[%emt 0:02:31]} 20. Bb4 {[%emt 0:04:47]} Rc6 {[%emt 0:05:10]} 21. g4 {[%emt 0:12:20]} Nf6 {[%emt 0:11:48]} 22. Rc1 {[%emt 0:04:15]} Ra8 {[%emt 0:06:32]} 23. Rhd1 {[%emt 0:05:34]} h6 {[%emt 0:04:07]} 24. Bxd6 {[%emt 0:05:12]} Rd8 {[%emt 0:00:22]} 25. c5 {[%emt 0:00:01]} Qa6+ {[%emt 0:00:09]} 26. Ke1 {[%emt 0:00:06]} Ne8 {[%emt 0:01:56]} 27. Nd5 {[%emt 0:00:08]} Bxd5 {[%emt 0:00:52]} 28. exd5 {[%emt 0:00:15]} Rcxd6 29. cxd6 {[%emt 0:00:06]} Nxd6 {[%emt 0:00:29]} 30. Kf2 {[%emt 0:02:28]} e4 {[%emt 0:04:42]} 31. Qe2 {[%emt 0:00:56]} Qb6+ {[%emt 0:00:43]} 32. Qe3 {[%emt 0:00:15]} Qb4 {[%emt 0:03:05]} 33. Rd4 {[%emt 0:00:54]} Qa5 {[%emt 0:00:05]} 34. Ra4 {[%emt 0:00:40]} Qxd5 {[%emt 0:00:12]} 35. Rd4 {[%emt 0:01:43]} Qe5 {[%emt 0:00:38]} 36. f4 {[%emt 0:00:21]} Qe7 {[%emt 0:00:57]} 37. Rcd1 {[%emt 0:01:00]} h5 {[%emt 0:00:18]} 38. Qg3 {[%emt 0:09:50]} e3+ {[%emt 0:02:15]} 39. Qxe3 {[%emt 0:00:37]} Qh4+ {[%emt 0:00:09]} 40. Kg1 {[%emt 0:00:33]} Qxg4+ {[%emt 0:00:55]} 41. Qg3 {[%emt 0:30:01]} Qc8 {[%emt 0:31:54]} 42. f5 {[%emt 0:00:00]} Qc5 {[%emt 0:00:00]} 43. b4 {[%emt 0:00:00]} Qb6 {[%emt 0:00:00]} 44. Kf1 {[%emt 0:00:00]} Qb5+ {[%emt 0:00:00]} 45. Qd3 {[%emt 0:00:00]} Qc6 {[%emt 0:00:00]} 46. Kg1 {[%emt 0:00:00]} Qb6 {[%emt 0:00:00]} 47. Kg2 {[%emt 0:00:00]} Qc6+ {[%emt 0:00:00]} 48. Qf3 {[%emt 0:00:00]} Qb6 {[%emt 0:00:00]} 49. Qf4 {[%emt 0:00:00]} Qc6+ {[%emt 0:00:00]} 50. Kh3 {[%emt 0:00:00]} Re8 {[%emt 0:00:00]} 51. Rxd6 {[%emt 0:00:00]} Qc7 {[%emt 0:00:00]} 52. R1d3 {[%emt 0:00:00]} Qc2 {[%emt 0:00:00]} 53. Rd8 {[%emt 0:00:00]} Rxd8 {[%emt 0:00:00]} 54. Rxd8+ {[%emt 0:00:00]} Kh7 {[%emt 0:00:00]} 55. f6 {[%emt 0:00:00]} Qc3+ {[%emt 0:00:00]} 56. Kg2 {[%emt 0:00:00]} Qc6+ {[%emt 0:00:00]} 57. Qf3 {[%emt 0:00:00]} Qc2+ {[%emt 0:00:00]} 58. Kh3 {[%emt 0:00:00]} g6 {[%emt 0:00:00]} 59. Qf4 {[%emt 0:00:00]} Qc3+ {[%emt 0:00:00]} 60. Kg2 {[%emt 0:00:00]} Qc2+ {[%emt 0:00:00]} 61. Rd2 {[%emt 0:00:00]} Qc6+ {[%emt 0:00:00]} 62. Qf3 {[%emt 0:00:00]} Qb5 {[%emt 0:00:00]} 63. Qd5 {[%emt 0:00:00]} Qe8 {[%emt 0:00:00]} 64. Kf2 {[%emt 0:00:00]} Kh6 {[%emt 0:00:00]} 65. h4 {[%emt 0:00:00]} Qb8 {[%emt 0:00:00]} 66. Kg2 {[%emt 0:00:00]} Qc7 {[%emt 0:00:00]} 67. Qc5 {[%emt 0:00:00]} Qb8 {[%emt 0:00:00]} 68. Rd7 {[%emt 0:00:00]} Qe8 {[%emt 0:00:00]} 69. Re7 {[%emt 0:00:00]} Qd8 {[%emt 0:00:00]} 70. Qg5+ {[%emt 0:00:00]} Kh7 {[%emt 0:00:00]} 71. Rxf7+ {[%emt 0:00:00]} Kh8 {[%emt 0:00:00]} 72. Qh6+ {[%emt 0:00:00]} Kg8 {[%emt 0:00:00]} 73. Qh7# {[%emt 0:00:00]} 1-0

[Event "WJCC U20 Open 2019"]
[Site "New Delhi"]
[Date "2019.10.24"]
[Round "10.27"]
[White "Zlatin, Alexander"]
[Black "Milikow, Yoav"]
[Result "1-0"]
[ECO "C18"]
[WhiteElo "2263"]
[BlackElo "2199"]
[Annotator "NA RC"]
[PlyCount "92"]
[EventDate "2019.10.15"]
[EventType "swiss"]
[EventCountry "IND"]
[SourceTitle "playchess.com"]
[Source "ChessBase"]
[SourceQuality "1"]
[TimeControl "40/5400+30:1800+30"]

1. e4 {[%emt 0:00:00]} e6 {[%emt 0:00:00]} 2. d4 {[%emt 0:00:00]} d5 {[%emt 0:00:00]} 3. Nc3 {[%emt 0:00:00]} Bb4 {[%emt 0:00:04]} 4. e5 {[%emt 0:00:03]} c5 {[%emt 0:00:11]} 5. a3 {[%emt 0:00:02]} Bxc3+ {[%emt 0:00:23]} 6. bxc3 {[%emt 0:00:05]} Qa5 {[%emt 0:00:25]} 7. Bd2 {[%emt 0:00:48]} Qa4 {[%emt 0:00:29]} 8. Qg4 {[%emt 0:00:29]} Kf8 {[%emt 0:00:36]} 9. Qd1 {[%emt 0:00:09]} b6 {[%emt 0:01:04]} 10. dxc5 {[%emt 0:00:19]} bxc5 {[%emt 0:00:23]} 11. c4 {[%emt 0:00:06]} Ba6 {[%emt 0:01:06]} 12. cxd5 {[%emt 0:00:11]} Bxf1 {[%emt 0:00:18]} 13. Kxf1 {[%emt 0:00:07]} exd5 {[%emt 0:01:09]} 14. Nf3 {[%emt 0:01:12]} Nd7 $11 {[%emt 0:05:54]} 15. g3 {[%emt 0:08:39]} Qe4 {[%emt 0:10:11]} 16. Kg2 {[%emt 0:12:51]} Nxe5 {[%emt 0:01:16]} 17. Re1 {[%emt 0:00:28]} Qxf3+ {[%emt 0:00:26]} 18. Qxf3 {[%emt 0:00:10]} Nxf3 {[%emt 0:00:03]} 19. Kxf3 {[%emt 0:00:16]} Ne7 {[%emt 0:10:56]} 20. Rab1 {[%emt 0:03:44]} Nc6 {[%emt 0:02:47]} 21. Rb7 {[%emt 0:05:00]} Rc8 {[%emt 0:05:03]} 22. Bf4 {[%emt 0:02:23]} g5 {[%emt 0:01:55]} 23. Bxg5 {[%emt 0:06:23]} Kg7 {[%emt 0:00:48]} 24. Rd7 {[%emt 0:07:19]} h6 {[%emt 0:06:15]} 25. Bh4 {[%emt 0:02:17]} Rhe8 {[%emt 0:06:14]} 26. Rxe8 {[%emt 0:02:12]} Rxe8 {[%emt 0:00:02]} 27. Rxd5 {[%emt 0:00:29]} Nd4+ {[%emt 0:00:30]} 28. Kg2 {[%emt 0:01:45]} Nxc2 {[%emt 0:01:31]} 29. Rxc5 {[%emt 0:00:18]} Nxa3 {[%emt 0:01:16]} 30. Ra5 {[%emt 0:00:11]} Nc2 31. Rxa7 {[%emt 0:00:35]} Ne1+ {[%emt 0:00:37]} 32. Kh3 {[%emt 0:01:16]} Re2 {[%emt 0:02:52]} 33. Re7 {[%emt 0:01:16]} Rxe7 {[%emt 0:01:04]} 34. Bxe7 {[%emt 0:00:05]} f5 {[%emt 0:00:22]} 35. g4 {[%emt 0:04:30]} Kg6 {[%emt 0:01:21]} 36. gxf5+ {[%emt 0:01:38]} Kxf5 {[%emt 0:00:02]} 37. Kg3 {[%emt 0:00:08]} h5 {[%emt 0:01:34]} 38. Bd6 {[%emt 0:00:25]} Nd3 {[%emt 0:02:08]} 39. Kf3 {[%emt 0:03:02]} Ne1+ {[%emt 0:02:03]} 40. Ke2 {[%emt 0:01:00]} Ng2 {[%emt 0:01:45]} 41. Bg3 {[%emt 0:32:20]} h4 {[%emt 0:32:10]} 42. Bc7 {[%emt 0:00:41]} Ke4 {[%emt 0:03:43]} 43. f3+ {[%emt 0:20:29]} Kd4 {[%emt 0:01:08]} 44. h3 {[%emt 0:01:16]} Kc5 {[%emt 0:01:06]} 45. Kf2 {[%emt 0:00:13]} Kc6 {[%emt 0:00:04]} 46. Bh2 {[%emt 0:00:12]} Kd5 1-0

[Event "WJCC U20 Open 2019"]
[Site "New Delhi"]
[Date "2019.10.24"]
[Round "10.29"]
[White "Tica, Sven"]
[Black "Sterck, Arno"]
[Result "1-0"]
[ECO "A46"]
[WhiteElo "2418"]
[BlackElo "2331"]
[Annotator "NA RC"]
[PlyCount "63"]
[EventDate "2019.10.15"]
[EventType "swiss"]
[EventCountry "IND"]
[SourceTitle "playchess.com"]
[Source "ChessBase"]
[SourceQuality "1"]
[TimeControl "40/5400+30:1800+30"]

1. d4 {[%emt 0:00:00]} Nf6 {[%emt 0:01:22]} 2. Nf3 {[%emt 0:00:17]} d5 {[%emt 0:01:53]} 3. c4 {[%emt 0:00:10]} e6 {[%emt 0:00:03]} 4. e3 {[%emt 0:01:33]} b6 {[%emt 0:02:25]} 5. Bd3 {[%emt 0:01:28]} Bb7 {[%emt 0:00:22]} 6. O-O {[%emt 0:00:25]} Nbd7 {[%emt 0:02:03]} 7. b3 {[%emt 0:00:49]} Bd6 {[%emt 0:00:12]} 8. Bb2 {[%emt 0:00:16]} O-O {[%emt 0:00:13]} 9. Nbd2 {[%emt 0:01:40]} Ne4 {[%emt 0:02:03]} 10. Qc2 {[%emt 0:00:45]} f5 {[%emt 0:02:50]} 11. Ne5 {[%emt 0:00:58]} Bxe5 {[%emt 0:08:29]} 12. dxe5 {[%emt 0:00:06]} Ndc5 {[%emt 0:00:13]} 13. Nxe4 {[%emt 0:13:54]} dxe4 {[%emt 0:12:23]} 14. Be2 {[%emt 0:00:11]} Qg5 {[%emt 0:12:03]} 15. Ba3 {[%emt 0:03:52]} f4 {[%emt 0:00:38]} 16. exf4 {[%emt 0:00:42]} Rxf4 {[%emt 0:00:43]} 17. Bxc5 {[%emt 0:05:36]} bxc5 {[%emt 0:00:16]} 18. Qc3 {[%emt 0:02:46]} Rf3 {[%emt 0:02:39]} 19. Bxf3 {[%emt 0:01:22]} exf3 {[%emt 0:00:25]} 20. g3 {[%emt 0:00:05]} Qg4 {[%emt 0:00:11]} 21. Kh1 {[%emt 0:00:05]} Rf8 {[%emt 0:01:23]} 22. Qd3 {[%emt 0:01:52]} Be4 {[%emt 0:03:07]} 23. Qd7 {[%emt 0:00:23]} Bf5 {[%emt 0:05:49]} 24. Rad1 {[%emt 0:06:14]} Qg5 {[%emt 0:01:55]} 25. Qxc7 {[%emt 0:01:23]} h5 {[%emt 0:02:21]} 26. Qxc5 {[%emt 0:08:47]} Bh3 {[%emt 0:04:51]} 27. Rg1 {[%emt 0:06:53]} Bg2+ {[%emt 0:06:36]} 28. Rxg2 {[%emt 0:00:13]} fxg2+ {[%emt 0:00:05]} 29. Kxg2 {[%emt 0:00:30]} Qg4 {[%emt 0:00:07]} 30. Qd4 {[%emt 0:07:04]} Qf3+ {[%emt 0:00:12]} 31. Kg1 {[%emt 0:00:18]} h4 {[%emt 0:11:05]} 32. Rd3 {[%emt 0:01:54]} 1-0

[Event "WJCC U20 Open 2019"]
[Site "New Delhi"]
[Date "2019.10.24"]
[Round "10.30"]
[White "Bharath Subramaniyam H"]
[Black "Cansun, Can Alp"]
[Result "1-0"]
[ECO "B47"]
[WhiteElo "2417"]
[BlackElo "2199"]
[Annotator "NA"]
[PlyCount "105"]
[EventDate "2019.10.15"]
[EventType "swiss"]
[EventCountry "IND"]
[SourceTitle "playchess.com"]
[Source "ChessBase"]
[SourceQuality "1"]
[TimeControl "40/5400+30:1800+30"]

1. e4 {[%emt 0:00:00]} c5 {[%emt 0:00:00]} 2. Nf3 {[%emt 0:00:07]} e6 {[%emt 0:00:00]} 3. d4 {[%emt 0:00:10]} cxd4 {[%emt 0:00:00]} 4. Nxd4 {[%emt 0:00:06]} Nc6 {[%emt 0:00:00]} 5. Nc3 {[%emt 0:00:08]} Qc7 {[%emt 0:00:00]} 6. g3 {[%emt 0:00:32]} a6 {[%emt 0:00:22]} 7. Bg2 {[%emt 0:00:16]} Nxd4 {[%emt 0:04:13]} 8. Qxd4 {[%emt 0:00:24]} d6 {[%emt 0:04:08]} 9. O-O {[%emt 0:05:39]} Nf6 {[%emt 0:02:40]} 10. Bg5 $14 {[%emt 0:11:04]} Be7 {[%emt 0:07:34]} 11. Rad1 {[%emt 0:02:06]} Bd7 {[%emt 0:06:30]} 12. Rfe1 {[%emt 0:02:00]} Bc6 {[%emt 0:13:14]} 13. Nd5 {[%emt 0:09:13]} Bxd5 {[%emt 0:00:09]} 14. exd5 {[%emt 0:00:10]} e5 {[%emt 0:00:04]} 15. Qd2 {[%emt 0:01:48]} O-O {[%emt 0:05:12]} 16. h3 {[%emt 0:01:54]} Rac8 {[%emt 0:02:16]} 17. Rc1 {[%emt 0:02:19]} b5 {[%emt 0:00:58]} 18. Be3 {[%emt 0:02:34]} Nd7 {[%emt 0:05:04]} 19. c4 {[%emt 0:05:05]} bxc4 {[%emt 0:08:00]} 20. Bf1 {[%emt 0:00:36]} Qd8 {[%emt 0:06:40]} 21. Bxc4 {[%emt 0:04:19]} f5 {[%emt 0:05:21]} 22. Bxa6 {[%emt 0:13:40]} Rxc1 {[%emt 0:07:33]} 23. Rxc1 {[%emt 0:00:13]} f4 {[%emt 0:03:25]} 24. gxf4 {[%emt 0:00:47]} exf4 {[%emt 0:00:06]} 25. Bxf4 {[%emt 0:01:02]} Nc5 {[%emt 0:01:28]} 26. Bf1 {[%emt 0:01:09]} Bh4 {[%emt 0:00:20]} 27. Rc4 {[%emt 0:02:05]} Qf6 {[%emt 0:06:11]} 28. Bg2 {[%emt 0:01:36]} Bxf2+ {[%emt 0:06:30]} 29. Qxf2 {[%emt 0:01:39]} Nd3 {[%emt 0:00:07]} 30. Qd4 {[%emt 0:00:24]} Qxd4+ {[%emt 0:01:33]} 31. Rxd4 {[%emt 0:01:26]} Nxf4 {[%emt 0:00:02]} 32. Kh2 {[%emt 0:01:24]} g5 {[%emt 0:00:06]} 33. b4 {[%emt 0:00:35]} Ra8 {[%emt 0:00:19]} 34. Rd2 {[%emt 0:00:43]} Ra4 {[%emt 0:00:54]} 35. b5 {[%emt 0:02:00]} Nxg2 {[%emt 0:01:29]} 36. Kxg2 {[%emt 0:02:11]} Rb4 {[%emt 0:00:21]} 37. a4 {[%emt 0:00:28]} Rxa4 {[%emt 0:00:01]} 38. Rb2 {[%emt 0:00:05]} Ra7 {[%emt 0:00:02]} 39. b6 {[%emt 0:00:54]} Rb7 {[%emt 0:00:00]} 40. Kf3 {[%emt 0:00:46]} Kf7 {[%emt 0:01:27]} 41. Ke4 {[%emt 0:30:14]} Kf6 {[%emt 0:34:33]} 42. Kd4 {[%emt 0:01:51]} Kf5 {[%emt 0:00:00]} 43. Kc4 {[%emt 0:00:00]} Ke4 {[%emt 0:00:00]} 44. Rb1 {[%emt 0:00:00]} Rg7 {[%emt 0:00:00]} 45. Re1+ {[%emt 0:00:00]} Kf3 {[%emt 0:00:00]} 46. Kb5 {[%emt 0:00:00]} h5 {[%emt 0:00:00]} 47. Kc6 {[%emt 0:00:00]} g4 {[%emt 0:00:00]} 48. hxg4 {[%emt 0:00:00]} Rxg4 {[%emt 0:00:00]} 49. b7 {[%emt 0:00:00]} Rb4 {[%emt 0:00:00]} 50. Re8 {[%emt 0:00:00]} h4 {[%emt 0:01:08]} 51. b8=Q {[%emt 0:00:00]} Rxb8 {[%emt 0:00:04]} 52. Rxb8 {[%emt 0:00:00]} h3 {[%emt 0:00:04]} 53. Rh8 {[%emt 0:00:00]} 1-0

[Event "WJCC U20 Open 2019"]
[Site "New Delhi"]
[Date "2019.10.24"]
[Round "10.31"]
[White "Doluweera, Minul Sanjula"]
[Black "Hollan, Martin"]
[Result "1-0"]
[ECO "D37"]
[WhiteElo "2191"]
[BlackElo "2403"]
[Annotator "NA"]
[PlyCount "143"]
[EventDate "2019.10.15"]
[EventType "swiss"]
[EventCountry "IND"]
[SourceTitle "playchess.com"]
[Source "ChessBase"]
[SourceQuality "1"]
[TimeControl "40/5400+30:1800+30"]

1. d4 {[%emt 0:00:00]} Nf6 {[%emt 0:00:00]} 2. c4 {[%emt 0:00:00]} e6 {[%emt 0:00:00]} 3. Nf3 {[%emt 0:00:00]} d5 {[%emt 0:00:00]} 4. Nc3 {[%emt 0:00:00]} dxc4 {[%emt 0:00:00]} 5. e3 {[%emt 0:03:18]} a6 {[%emt 0:00:46]} 6. a4 {[%emt 0:00:28]} b6 {[%emt 0:03:09]} 7. Bxc4 {[%emt 0:00:10]} Bb7 {[%emt 0:00:07]} 8. O-O {[%emt 0:00:27]} Bb4 {[%emt 0:10:19]} 9. Qb3 {[%emt 0:27:38]} Bxc3 {[%emt 0:06:48]} 10. bxc3 {[%emt 0:00:24]} O-O {[%emt 0:00:17]} 11. Re1 {[%emt 0:12:41]} Nbd7 {[%emt 0:03:08]} 12. Nd2 $14 {[%emt 0:01:33]} Ng4 {[%emt 0:27:23]} 13. Nf1 {[%emt 0:11:32]} Qh4 {[%emt 0:03:53]} 14. Re2 {[%emt 0:02:27]} Ndf6 {[%emt 0:02:22]} 15. f3 {[%emt 0:02:36]} Nh6 {[%emt 0:00:44]} 16. Bd2 {[%emt 0:06:20]} e5 {[%emt 0:14:32]} 17. dxe5 {[%emt 0:04:07]} Nd7 {[%emt 0:00:06]} 18. e6 {[%emt 0:02:38]} Nc5 {[%emt 0:00:30]} 19. exf7+ {[%emt 0:00:02]} Kh8 {[%emt 0:01:00]} 20. Qa2 {[%emt 0:01:34]} b5 {[%emt 0:01:06]} 21. Bb3 {[%emt 0:01:32]} Nxb3 {[%emt 0:02:41]} 22. Qxb3 {[%emt 0:00:01]} Nxf7 {[%emt 0:00:11]} 23. Qb4 {[%emt 0:04:13]} Qf6 {[%emt 0:02:15]} 24. Qf4 {[%emt 0:03:12]} Qe7 {[%emt 0:03:57]} 25. e4 {[%emt 0:01:04]} Ne5 {[%emt 0:00:45]} 26. Qg5 {[%emt 0:02:56]} Qe6 {[%emt 0:00:48]} 27. Bf4 {[%emt 0:01:10]} Ng6 {[%emt 0:06:27]} 28. Be3 {[%emt 0:01:40]} Qc4 {[%emt 0:00:51]} 29. Rc2 {[%emt 0:04:39]} Qd3 {[%emt 0:04:30]} 30. Rcc1 {[%emt 0:00:02]} Rae8 {[%emt 0:01:45]} 31. Bd4 {[%emt 0:00:48]} Rf7 {[%emt 0:01:01]} 32. Rd1 {[%emt 0:00:17]} Qc4 {[%emt 0:01:15]} 33. Ne3 {[%emt 0:00:20]} Qe6 {[%emt 0:00:24]} 34. Nf5 {[%emt 0:00:32]} Ne5 {[%emt 0:01:50]} 35. Qg3 {[%emt 0:00:42]} h6 {[%emt 0:01:22]} 36. axb5 {[%emt 0:02:39]} axb5 {[%emt 0:00:01]} 37. Bxe5 {[%emt 0:01:04]} Qxe5 {[%emt 0:00:07]} 38. Qxe5 {[%emt 0:00:03]} Rxe5 {[%emt 0:00:06]} 39. Rd8+ {[%emt 0:00:02]} Kh7 {[%emt 0:00:08]} 40. Rad1 {[%emt 0:03:09]} Rc5 {[%emt 0:01:13]} 41. h4 {[%emt 0:10:17]} Rxc3 {[%emt 0:16:53]} 42. h5 {[%emt 0:00:34]} Rc5 {[%emt 0:03:28]} 43. Rb8 {[%emt 0:02:08]} Bd5 {[%emt 0:01:12]} 44. Nh4 {[%emt 0:00:44]} Bxe4 {[%emt 0:02:21]} 45. Rdd8 {[%emt 0:04:03]} g5 {[%emt 0:00:07]} 46. hxg6+ {[%emt 0:00:09]} Bxg6 {[%emt 0:00:07]} 47. Rh8+ {[%emt 0:00:17]} Kg7 {[%emt 0:00:06]} 48. Rbg8+ {[%emt 0:00:45]} Kf6 {[%emt 0:00:07]} 49. Rxg6+ {[%emt 0:00:19]} Ke5 {[%emt 0:00:07]} 50. Rgxh6 {[%emt 0:01:49]} Kd4 {[%emt 0:00:46]} 51. g4 {[%emt 0:01:31]} b4 {[%emt 0:00:29]} 52. Rb8 {[%emt 0:00:07]} Kc3 {[%emt 0:01:55]} 53. Re6 {[%emt 0:01:02]} Rf4 {[%emt 0:01:14]} 54. Re3+ {[%emt 0:01:38]} Kd2 {[%emt 0:00:37]} 55. Ng2 {[%emt 0:01:38]} Rd4 {[%emt 0:02:50]} 56. Rb3 {[%emt 0:05:15]} Rc1+ {[%emt 0:00:45]} 57. Kf2 {[%emt 0:00:13]} c5 {[%emt 0:00:08]} 58. Rb5 {[%emt 0:01:45]} Rc3 {[%emt 0:00:55]} 59. Rxc3 {[%emt 0:01:28]} bxc3 {[%emt 0:00:06]} 60. Rxc5 {[%emt 0:00:24]} c2 {[%emt 0:00:04]} 61. g5 {[%emt 0:00:52]} c1=Q {[%emt 0:00:10]} 62. Rxc1 {[%emt 0:00:02]} Kxc1 {[%emt 0:00:06]} 63. Ke3 {[%emt 0:00:40]} Rd8 {[%emt 0:01:11]} 64. f4 {[%emt 0:02:01]} Kc2 {[%emt 0:00:05]} 65. g6 {[%emt 0:00:15]} Kc3 {[%emt 0:00:39]} 66. f5 {[%emt 0:00:28]} Kc4 {[%emt 0:00:15]} 67. Kf4 {[%emt 0:01:08]} Kd5 {[%emt 0:00:23]} 68. Kg5 {[%emt 0:00:42]} Ke5 {[%emt 0:05:37]} 69. Ne3 {[%emt 0:00:09]} Kd6 {[%emt 0:02:21]} 70. g7 {[%emt 0:00:41]} Ke7 {[%emt 0:01:34]} 71. Kg6 {[%emt 0:00:39]} Ra8 {[%emt 0:00:32]} 72. f6+ {[%emt 0:00:44]} 1-0

[Event "WJCC U20 Open 2019"]
[Site "New Delhi"]
[Date "2019.10.24"]
[Round "10.33"]
[White "Licheli, Luka"]
[Black "Anuj Shrivatri"]
[Result "1/2-1/2"]
[ECO "C26"]
[WhiteElo "2010"]
[BlackElo "2390"]
[Annotator "NA RC"]
[PlyCount "65"]
[EventDate "2019.10.15"]
[EventType "swiss"]
[EventCountry "IND"]
[SourceTitle "playchess.com"]
[Source "ChessBase"]
[SourceQuality "1"]
[TimeControl "40/5400+30:1800+30"]

1. e4 {[%emt 0:00:00]} e5 {[%emt 0:00:00]} 2. Nc3 {[%emt 0:00:00]} Nf6 {[%emt 0:00:00]} 3. g3 {[%emt 0:00:00]} d5 {[%emt 0:00:00]} 4. exd5 {[%emt 0:00:00]} Nxd5 {[%emt 0:00:00]} 5. Bg2 {[%emt 0:00:00]} Nxc3 {[%emt 0:00:00]} 6. bxc3 {[%emt 0:00:00]} Bc5 {[%emt 0:00:03]} 7. d3 {[%emt 0:05:53]} O-O {[%emt 0:00:24]} 8. Qe2 {[%emt 0:02:06]} Nc6 {[%emt 0:00:27]} 9. Nf3 {[%emt 0:00:06]} Qf6 {[%emt 0:01:17]} 10. O-O {[%emt 0:10:01]} Bb6 {[%emt 0:05:19]} 11. Nd2 {[%emt 0:04:27]} Be6 {[%emt 0:03:49]} 12. Ba3 {[%emt 0:05:30]} Rfd8 {[%emt 0:07:00]} 13. Ne4 {[%emt 0:01:06]} Qg6 {[%emt 0:01:14]} 14. Kh1 {[%emt 0:08:47]} f5 {[%emt 0:10:07]} 15. Nd2 $11 {[%emt 0:13:39]} Bd5 {[%emt 0:07:09]} 16. f4 {[%emt 0:05:50]} Bxg2+ {[%emt 0:07:30]} 17. Qxg2 {[%emt 0:03:54]} exf4 {[%emt 0:06:28]} 18. Rxf4 {[%emt 0:02:46]} Be3 {[%emt 0:04:33]} 19. Rff1 {[%emt 0:01:34]} Bxd2 {[%emt 0:01:54]} 20. Qxd2 {[%emt 0:00:02]} Re8 {[%emt 0:13:38]} 21. Rae1 {[%emt 0:04:55]} Qf7 {[%emt 0:03:02]} 22. c4 {[%emt 0:00:49]} Qf6 {[%emt 0:07:05]} 23. Qf2 {[%emt 0:08:53]} Rxe1 {[%emt 0:07:26]} 24. Rxe1 {[%emt 0:00:39]} Qc3 {[%emt 0:02:34]} 25. Bc5 {[%emt 0:05:48]} b6 {[%emt 0:03:09]} 26. Re6 {[%emt 0:03:53]} bxc5 {[%emt 0:01:13]} 27. Rxc6 {[%emt 0:00:42]} Rb8 {[%emt 0:02:17]} 28. Rxc7 {[%emt 0:04:15]} f4 {[%emt 0:01:55]} 29. Qe2 {[%emt 0:06:03]} Qf6 {[%emt 0:03:12]} 30. gxf4 {[%emt 0:02:09]} Rb1+ {[%emt 0:00:59]} 31. Kg2 {[%emt 0:00:13]} Qg6+ {[%emt 0:00:05]} 32. Kh3 {[%emt 0:01:12]} Qh6+ {[%emt 0:00:13]} 33. Kg2 {[%emt 0:00:09]} 1/2-1/2